[Event "*** Titled Tuesday Blitz"]
[Site "Chess.com"]
[Date "2020.03.03"]
[Round "8"]
[White "Gahan-MG"]
[Black "Kobalia"]
[Result "1-0"]
[WhiteElo "2491"]
[BlackElo "2606"]
[TimeControl "180+1"]
[EndTime "10:29:10 PST"]
[Termination "Gahan-MG won by resignation"]

1. e4 {[%clk 0:03:00.9]} 1... c6 {[%clk 0:02:59.3]} 2. d4 {[%clk 0:03:00.8]}
2... d5 {[%clk 0:02:59.7]} 3. e5 {[%clk 0:03:01.7]} 3... Bf5 {[%clk 0:02:58.9]}
4. Be3 {[%clk 0:03:02]} 4... e6 {[%clk 0:02:57.9]} 5. c3 {[%clk 0:02:58.9]} 5...
Nd7 {[%clk 0:02:57.1]} 6. f4 {[%clk 0:02:57.3]} 6... h5 {[%clk 0:02:51.5]} 7.
Nd2 {[%clk 0:02:56.4]} 7... c5 {[%clk 0:02:50.4]} 8. Ngf3 {[%clk 0:02:50.7]}
8... Nh6 {[%clk 0:02:42.5]} 9. dxc5 {[%clk 0:02:50.4]} 9... Bxc5 {[%clk
0:02:40.8]} 10. Bxc5 {[%clk 0:02:46]} 10... Nxc5 {[%clk 0:02:39.7]} 11. Bb5+
{[%clk 0:02:46.6]} 11... Nd7 {[%clk 0:02:39.4]} 12. Nd4 {[%clk 0:02:45]} 12...
h4 {[%clk 0:02:38]} 13. Qa4 {[%clk 0:02:39.4]} 13... a6 {[%clk 0:02:34.4]} 14.
Bxd7+ {[%clk 0:02:37.8]} 14... Qxd7 {[%clk 0:02:34.4]} 15. Qa3 {[%clk
0:02:30.3]} 15... Bd3 {[%clk 0:02:28.1]} 16. N2b3 {[%clk 0:02:20.4]} 16... Qe7
{[%clk 0:02:26]} 17. Qxe7+ {[%clk 0:02:14.4]} 17... Kxe7 {[%clk 0:02:24.7]} 18.
Nc5 {[%clk 0:02:10.1]} 18... Be4 {[%clk 0:02:17]} 19. Nxe4 {[%clk 0:02:06]}
19... dxe4 {[%clk 0:02:16.9]} 20. Ke2 {[%clk 0:02:03.7]} 20... h3 {[%clk
0:02:15.9]} 21. g3 {[%clk 0:02:00.7]} 21... Ng4 {[%clk 0:02:13]} 22. Rae1 {[%clk
0:01:56.9]} 22... f5 {[%clk 0:02:09.2]} 23. exf6+ {[%clk 0:01:53.4]} 23... gxf6
{[%clk 0:02:08.7]} 24. f5 {[%clk 0:01:49.9]} 24... e5 {[%clk 0:02:08.7]} 25. Nc2
{[%clk 0:01:49.4]} 25... Rh5 {[%clk 0:02:00]} 26. Ne3 {[%clk 0:01:49.4]} 26...
Rg8 {[%clk 0:01:58.6]} 27. Ref1 {[%clk 0:01:39.4]} 27... b5 {[%clk 0:01:57.5]}
28. Nxg4 {[%clk 0:01:34.2]} 28... Rxg4 {[%clk 0:01:56.3]} 29. Ke3 {[%clk
0:01:35.1]} 29... Kd6 {[%clk 0:01:53.2]} 30. Rf2 {[%clk 0:01:34.1]} 30... Kc6
{[%clk 0:01:49.8]} 31. Rd1 {[%clk 0:01:31.8]} 31... Rh8 {[%clk 0:01:34.4]} 32.
Rfd2 {[%clk 0:01:24.7]} 32... Rh6 {[%clk 0:01:02.8]} 33. Rd6+ {[%clk 0:01:22.3]}
33... Kc7 {[%clk 0:00:59.9]} 34. Rxa6 {[%clk 0:01:09.9]} 34... Kb7 {[%clk
0:00:59.2]} 35. Re6 {[%clk 0:01:06.1]} 35... Rg8 {[%clk 0:00:53.2]} 36. Kxe4
{[%clk 0:01:01.9]} 36... b4 {[%clk 0:00:52]} 37. cxb4 {[%clk 0:00:46.7]} 37...
Rg4+ {[%clk 0:00:50.8]} 38. Kf3 {[%clk 0:00:46.8]} 38... Rxb4 {[%clk 0:00:51.1]}
39. Rd7+ {[%clk 0:00:44.3]} 39... Kc8 {[%clk 0:00:50.1]} 40. Rf7 {[%clk
0:00:44.5]} 40... Rh8 {[%clk 0:00:49.1]} 41. b3 {[%clk 0:00:43.2]} 41... Rd8
{[%clk 0:00:48]} 42. Rfxf6 {[%clk 0:00:22.9]} 42... Rd3+ {[%clk 0:00:46.7]} 43.
Ke2 {[%clk 0:00:23.3]} 43... Rc3 {[%clk 0:00:46.8]} 44. Rc6+ {[%clk 0:00:23.7]}
44... Rxc6 {[%clk 0:00:45.8]} 45. Rxc6+ {[%clk 0:00:24.6]} 45... Kd7 {[%clk
0:00:46.3]} 46. Re6 {[%clk 0:00:23.5]} 46... Re4+ {[%clk 0:00:45.2]} 47. Kf3
{[%clk 0:00:22.8]} 47... Rd4 {[%clk 0:00:44.5]} 48. Rh6 {[%clk 0:00:22.4]} 1-0

[Event "*** Titled Tuesday Blitz"]
[Site "Chess.com"]
[Date "2020.03.03"]
[Round "8"]
[White "MixMasterChess"]
[Black "Resignify"]
[Result "1-0"]
[WhiteElo "2104"]
[BlackElo "2221"]
[TimeControl "180+1"]
[EndTime "10:29:17 PST"]
[Termination "MixMasterChess won on time"]

1. e4 {[%clk 0:03:00.9]} 1... d6 {[%clk 0:02:55.9]} 2. d4 {[%clk 0:03:00.3]}
2... Nf6 {[%clk 0:02:56.1]} 3. Nc3 {[%clk 0:03:00.8]} 3... g6 {[%clk 0:02:56.6]}
4. f4 {[%clk 0:03:01.1]} 4... Bg7 {[%clk 0:02:56.9]} 5. Nf3 {[%clk 0:03:01.6]}
5... O-O {[%clk 0:02:57.2]} 6. Be3 {[%clk 0:03:02.1]} 6... Nc6 {[%clk
0:02:47.3]} 7. Qd2 {[%clk 0:03:00.2]} 7... Ng4 {[%clk 0:02:44.1]} 8. Bg1 {[%clk
0:02:59]} 8... e5 {[%clk 0:02:44]} 9. d5 {[%clk 0:02:49.1]} 9... Nb8 {[%clk
0:02:19.6]} 10. h3 {[%clk 0:02:47.8]} 10... Nf6 {[%clk 0:02:16.9]} 11. fxe5
{[%clk 0:02:43.9]} 11... dxe5 {[%clk 0:02:10.5]} 12. Be3 {[%clk 0:02:43.3]}
12... Ne8 {[%clk 0:02:02.4]} 13. O-O-O {[%clk 0:02:42.2]} 13... Nd6 {[%clk
0:02:02.1]} 14. Bh6 {[%clk 0:02:35.4]} 14... Nd7 {[%clk 0:01:49.5]} 15. h4
{[%clk 0:02:32.1]} 15... Bxh6 {[%clk 0:01:42.3]} 16. Qxh6 {[%clk 0:02:30.3]}
16... Qf6 {[%clk 0:01:42.8]} 17. Qe3 {[%clk 0:02:05.9]} 17... Qf4 {[%clk
0:01:31.6]} 18. Qxf4 {[%clk 0:02:05.4]} 18... exf4 {[%clk 0:01:32.5]} 19. e5
{[%clk 0:02:05.5]} 19... Nf5 {[%clk 0:01:28.8]} 20. Bd3 {[%clk 0:02:03.2]} 20...
Ne3 {[%clk 0:01:17.6]} 21. Rdg1 {[%clk 0:02:01.7]} 21... Nb6 {[%clk 0:01:14.3]}
22. Be4 {[%clk 0:01:44.8]} 22... Rd8 {[%clk 0:01:03]} 23. d6 {[%clk 0:01:32.6]}
23... cxd6 {[%clk 0:00:59.4]} 24. exd6 {[%clk 0:01:29.7]} 24... Rxd6 {[%clk
0:00:54.3]} 25. Nb5 {[%clk 0:01:28.1]} 25... Rd8 {[%clk 0:00:46.3]} 26. g3
{[%clk 0:01:09.4]} 26... fxg3 {[%clk 0:00:41.7]} 27. Rxg3 {[%clk 0:01:09.8]}
27... Ned5 {[%clk 0:00:21.8]} 28. Rd1 {[%clk 0:00:53.2]} 28... Be6 {[%clk
0:00:19.1]} 29. Bxd5 {[%clk 0:00:47.2]} 29... Rxd5 {[%clk 0:00:14.7]} 30. Rxd5
{[%clk 0:00:36.1]} 30... Nxd5 {[%clk 0:00:15.6]} 31. Ng5 {[%clk 0:00:33.6]}
31... a6 {[%clk 0:00:13.9]} 32. Nd6 {[%clk 0:00:25.1]} 32... Rb8 {[%clk
0:00:12.3]} 33. Nxe6 {[%clk 0:00:23.9]} 33... fxe6 {[%clk 0:00:13.2]} 34. Rf3
{[%clk 0:00:23.3]} 34... b5 {[%clk 0:00:08.4]} 35. Ne4 {[%clk 0:00:19.4]} 35...
Rf8 {[%clk 0:00:06.9]} 36. Rd3 {[%clk 0:00:16.4]} 36... Rc8 {[%clk 0:00:04.7]}
37. c3 {[%clk 0:00:15.5]} 37... Nb4 {[%clk 0:00:03.8]} 38. Rd7 {[%clk
0:00:13.3]} 38... Nd5 {[%clk 0:00:02.3]} 39. Kd2 {[%clk 0:00:12.2]} 39... h6
{[%clk 0:00:01.6]} 40. Kd3 {[%clk 0:00:12.1]} 1-0

[Event "*** Titled Tuesday Blitz"]
[Site "Chess.com"]
[Date "2020.03.03"]
[Round "8"]
[White "GodDMuhammad"]
[Black "Alopekos"]
[Result "1-0"]
[WhiteElo "2357"]
[BlackElo "2434"]
[TimeControl "180+1"]
[EndTime "10:29:19 PST"]
[Termination "GodDMuhammad won by checkmate"]

1. f4 {[%clk 0:03:00.9]} 1... c5 {[%clk 0:02:55.7]} 2. Nf3 {[%clk 0:03:00.1]}
2... Nc6 {[%clk 0:02:55.5]} 3. g3 {[%clk 0:02:59.6]} 3... g6 {[%clk 0:02:55.5]}
4. Bg2 {[%clk 0:02:59.4]} 4... Bg7 {[%clk 0:02:56]} 5. d3 {[%clk 0:02:58.8]}
5... e6 {[%clk 0:02:54.9]} 6. c3 {[%clk 0:02:58.3]} 6... Nge7 {[%clk 0:02:53.4]}
7. e4 {[%clk 0:02:57.5]} 7... d6 {[%clk 0:02:52.7]} 8. O-O {[%clk 0:02:56.2]}
8... O-O {[%clk 0:02:52.5]} 9. Be3 {[%clk 0:02:51]} 9... Rb8 {[%clk 0:02:51.6]}
10. Nbd2 {[%clk 0:02:50.5]} 10... b5 {[%clk 0:02:50.6]} 11. Qc2 {[%clk
0:02:46.1]} 11... a5 {[%clk 0:02:49.7]} 12. h3 {[%clk 0:02:41.5]} 12... b4
{[%clk 0:02:48.4]} 13. d4 {[%clk 0:02:26.6]} 13... bxc3 {[%clk 0:02:42.8]} 14.
bxc3 {[%clk 0:02:27.5]} 14... cxd4 {[%clk 0:02:42.3]} 15. cxd4 {[%clk
0:02:26.3]} 15... Nb4 {[%clk 0:02:39.4]} 16. Qd1 {[%clk 0:02:19.8]} 16... Ba6
{[%clk 0:02:34.8]} 17. Rf2 {[%clk 0:02:07.7]} 17... Nd3 {[%clk 0:02:34.6]} 18.
Qa4 {[%clk 0:01:48.7]} 18... Bb5 {[%clk 0:02:26.4]} 19. Qa3 {[%clk 0:01:41]}
19... Nxf2 {[%clk 0:02:18.7]} 20. Bxf2 {[%clk 0:01:41.9]} 20... Nc6 {[%clk
0:02:17.4]} 21. Rc1 {[%clk 0:01:29.1]} 21... Nb4 {[%clk 0:02:13.8]} 22. e5
{[%clk 0:01:21.6]} 22... Nd3 {[%clk 0:01:57.7]} 23. Rc3 {[%clk 0:01:05.2]} 23...
Nxf2 {[%clk 0:01:54.8]} 24. Kxf2 {[%clk 0:01:06.1]} 24... dxe5 {[%clk
0:01:54.6]} 25. fxe5 {[%clk 0:01:03.1]} 25... Qd5 {[%clk 0:01:43.5]} 26. Rc5
{[%clk 0:00:57.4]} 26... Qd8 {[%clk 0:01:30.7]} 27. Ne4 {[%clk 0:00:53.2]} 27...
Qb6 {[%clk 0:01:24.7]} 28. Nd6 {[%clk 0:00:49.4]} 28... Bd3 {[%clk 0:01:17.2]}
29. Qxd3 {[%clk 0:00:46.6]} 29... Qb2+ {[%clk 0:01:17]} 30. Rc2 {[%clk
0:00:45.1]} 30... Qa1 {[%clk 0:01:14.8]} 31. g4 {[%clk 0:00:41]} 31... Rb1
{[%clk 0:01:08.9]} 32. Kg3 {[%clk 0:00:39.9]} 32... Bh6 {[%clk 0:01:07.3]} 33.
g5 {[%clk 0:00:39.1]} 33... Bg7 {[%clk 0:01:06.2]} 34. Qc3 {[%clk 0:00:35.2]}
34... Rfb8 {[%clk 0:00:46.2]} 35. Qxa5 {[%clk 0:00:27.7]} 35... h5 {[%clk
0:00:32.4]} 36. Qc7 {[%clk 0:00:24.1]} 36... Ra8 {[%clk 0:00:26.6]} 37. Qxf7+
{[%clk 0:00:23.2]} 37... Kh8 {[%clk 0:00:19.3]} 38. Rc7 {[%clk 0:00:17.5]} 38...
Rg8 {[%clk 0:00:13.1]} 39. Nh4 {[%clk 0:00:14.8]} 39... Rg1 {[%clk 0:00:06.5]}
40. Nxg6+ {[%clk 0:00:14.1]} 40... Kh7 {[%clk 0:00:06.7]} 41. Nf4 {[%clk
0:00:13.5]} 41... Qe1+ {[%clk 0:00:04.7]} 42. Kh2 {[%clk 0:00:13.9]} 42... Rxg2+
{[%clk 0:00:04.2]} 43. Nxg2 {[%clk 0:00:14]} 43... h4 {[%clk 0:00:02.4]} 44.
Qh5# {[%clk 0:00:13.1]} 1-0

[Event "*** Titled Tuesday Blitz"]
[Site "Chess.com"]
[Date "2020.03.03"]
[Round "8"]
[White "RitvarsReimanis"]
[Black "124chess"]
[Result "1-0"]
[WhiteElo "2629"]
[BlackElo "2478"]
[TimeControl "180+1"]
[EndTime "10:29:21 PST"]
[Termination "RitvarsReimanis won by resignation"]

1. d4 {[%clk 0:02:53.4]} 1... Nf6 {[%clk 0:02:59.6]} 2. c4 {[%clk 0:02:53.6]}
2... e6 {[%clk 0:03:00.5]} 3. Nf3 {[%clk 0:02:53.4]} 3... b6 {[%clk 0:03:00.5]}
4. g3 {[%clk 0:02:53.2]} 4... c6 {[%clk 0:02:59.9]} 5. Bg2 {[%clk 0:02:51.8]}
5... Be7 {[%clk 0:03:00.4]} 6. O-O {[%clk 0:02:52.2]} 6... O-O {[%clk
0:03:00.6]} 7. Re1 {[%clk 0:02:51.4]} 7... d5 {[%clk 0:03:00.8]} 8. Nbd2 {[%clk
0:02:49.6]} 8... Bb7 {[%clk 0:02:53.4]} 9. e4 {[%clk 0:02:49.4]} 9... dxe4
{[%clk 0:02:52.6]} 10. Nxe4 {[%clk 0:02:49.2]} 10... Nxe4 {[%clk 0:02:53]} 11.
Rxe4 {[%clk 0:02:49.4]} 11... c5 {[%clk 0:02:53.7]} 12. Re1 {[%clk 0:02:35.5]}
12... Nc6 {[%clk 0:02:49.9]} 13. Be3 {[%clk 0:02:24.5]} 13... Nxd4 {[%clk
0:02:44.2]} 14. Nxd4 {[%clk 0:02:21.4]} 14... Bxg2 {[%clk 0:02:44]} 15. Kxg2
{[%clk 0:02:22.3]} 15... cxd4 {[%clk 0:02:44]} 16. Bxd4 {[%clk 0:02:22.1]} 16...
Qc7 {[%clk 0:02:43.8]} 17. Qg4 {[%clk 0:02:12.3]} 17... g6 {[%clk 0:02:43.8]}
18. Bc3 {[%clk 0:02:05.4]} 18... Rfd8 {[%clk 0:02:34.2]} 19. Rad1 {[%clk
0:01:56.5]} 19... Rac8 {[%clk 0:02:30.8]} 20. b3 {[%clk 0:01:52.5]} 20... b5
{[%clk 0:02:25.9]} 21. Rxd8+ {[%clk 0:01:51.5]} 21... Rxd8 {[%clk 0:02:25.9]}
22. Be5 {[%clk 0:01:35.2]} 22... Qc6+ {[%clk 0:02:21.8]} 23. Qf3 {[%clk
0:01:28]} 23... Qxf3+ {[%clk 0:02:20.6]} 24. Kxf3 {[%clk 0:01:28.9]} 24... bxc4
{[%clk 0:02:21.2]} 25. bxc4 {[%clk 0:01:29.8]} 25... Rd2 {[%clk 0:02:17.1]} 26.
Re2 {[%clk 0:01:23.5]} 26... Rd3+ {[%clk 0:02:08.2]} 27. Re3 {[%clk 0:01:23.4]}
27... Rd2 {[%clk 0:02:04.5]} 28. Rb3 {[%clk 0:01:05.4]} 28... f6 {[%clk
0:02:03.2]} 29. Rb7 {[%clk 0:01:01]} 29... Kf8 {[%clk 0:01:58.3]} 30. Bb8 {[%clk
0:00:47.2]} 30... Bc5 {[%clk 0:01:51.3]} 31. Bxa7 {[%clk 0:00:45.7]} 31... Rxf2+
{[%clk 0:01:51]} 32. Ke4 {[%clk 0:00:46.2]} 32... Bxa7 {[%clk 0:01:38.8]} 33.
Rxa7 {[%clk 0:00:47.1]} 33... Rxh2 {[%clk 0:01:39.1]} 34. Kd4 {[%clk 0:00:38]}
34... h5 {[%clk 0:01:38.6]} 35. c5 {[%clk 0:00:32.9]} 35... Rc2 {[%clk
0:01:34.2]} 36. a4 {[%clk 0:00:33]} 36... g5 {[%clk 0:01:27.8]} 37. a5 {[%clk
0:00:27.9]} 37... h4 {[%clk 0:01:22.9]} 38. gxh4 {[%clk 0:00:28.8]} 38... g4
{[%clk 0:01:16]} 39. h5 {[%clk 0:00:28.8]} 39... g3 {[%clk 0:01:16.1]} 40. h6
{[%clk 0:00:28.3]} 40... Rh2 {[%clk 0:01:04.6]} 41. Rg7 {[%clk 0:00:21.1]} 41...
Rh4+ {[%clk 0:00:50.5]} 42. Kc3 {[%clk 0:00:18.7]} 42... Rxh6 {[%clk 0:00:46.1]}
43. Rxg3 {[%clk 0:00:18.9]} 43... Rh1 {[%clk 0:00:45.4]} 44. Kb4 {[%clk
0:00:17.9]} 44... Rb1+ {[%clk 0:00:44.9]} 45. Rb3 {[%clk 0:00:17.9]} 45... Ra1
{[%clk 0:00:42.7]} 46. Ra3 {[%clk 0:00:18]} 46... Rb1+ {[%clk 0:00:42.6]} 47.
Kc4 {[%clk 0:00:18.1]} 47... Ke7 {[%clk 0:00:37.5]} 48. a6 {[%clk 0:00:18.2]}
48... Rb8 {[%clk 0:00:37.8]} 49. a7 {[%clk 0:00:17.5]} 49... Ra8 {[%clk
0:00:38.2]} 50. Kb5 {[%clk 0:00:18.2]} 50... f5 {[%clk 0:00:36.9]} 51. Kb6
{[%clk 0:00:18.3]} 51... f4 {[%clk 0:00:37.3]} 52. Kb7 {[%clk 0:00:17.8]} 52...
Rf8 {[%clk 0:00:36.2]} 53. a8=Q {[%clk 0:00:17.7]} 53... Rxa8 {[%clk 0:00:36.3]}
54. Rxa8 {[%clk 0:00:17.8]} 54... e5 {[%clk 0:00:36.8]} 55. c6 {[%clk
0:00:18.1]} 1-0

[Event "*** Titled Tuesday Blitz"]
[Site "Chess.com"]
[Date "2020.03.03"]
[Round "8"]
[White "KerryStead"]
[Black "Mikasinski"]
[Result "1-0"]
[WhiteElo "2131"]
[BlackElo "2230"]
[TimeControl "180+1"]
[EndTime "10:29:21 PST"]
[Termination "KerryStead won on time"]

1. d4 {[%clk 0:03:00.9]} 1... Nf6 {[%clk 0:02:53.2]} 2. f3 {[%clk 0:03:00]} 2...
g6 {[%clk 0:02:52]} 3. e4 {[%clk 0:02:59.7]} 3... d6 {[%clk 0:02:51.1]} 4. Be3
{[%clk 0:02:59.5]} 4... Bg7 {[%clk 0:02:50.9]} 5. Qd2 {[%clk 0:02:59.6]} 5...
O-O {[%clk 0:02:50.5]} 6. Nc3 {[%clk 0:02:58.9]} 6... b6 {[%clk 0:02:48.9]} 7.
Bc4 {[%clk 0:02:56.8]} 7... Bb7 {[%clk 0:02:49.2]} 8. Nge2 {[%clk 0:02:55]} 8...
Nbd7 {[%clk 0:02:49.1]} 9. g4 {[%clk 0:02:53.3]} 9... e5 {[%clk 0:02:46.5]} 10.
O-O-O {[%clk 0:02:47.8]} 10... exd4 {[%clk 0:02:45.9]} 11. Nxd4 {[%clk
0:02:40.2]} 11... Ne5 {[%clk 0:02:45.7]} 12. Be2 {[%clk 0:02:38.8]} 12... Re8
{[%clk 0:02:41.9]} 13. Rhg1 {[%clk 0:02:33]} 13... a6 {[%clk 0:02:36.6]} 14. g5
{[%clk 0:02:28.3]} 14... Nfd7 {[%clk 0:02:32.3]} 15. f4 {[%clk 0:02:26.8]} 15...
Nc6 {[%clk 0:02:29]} 16. Nxc6 {[%clk 0:02:16.7]} 16... Bxc6 {[%clk 0:02:28.8]}
17. Bf3 {[%clk 0:02:15.8]} 17... Nc5 {[%clk 0:02:26.9]} 18. Bxc5 {[%clk
0:02:10]} 18... bxc5 {[%clk 0:02:24.8]} 19. Nd5 {[%clk 0:02:09.1]} 19... Rb8
{[%clk 0:02:20.7]} 20. c3 {[%clk 0:02:08.3]} 20... Ba4 {[%clk 0:01:44.1]} 21.
Rde1 {[%clk 0:02:02.2]} 21... Qd7 {[%clk 0:01:39.9]} 22. h4 {[%clk 0:01:52]}
22... c6 {[%clk 0:01:34.7]} 23. Ne3 {[%clk 0:01:49.8]} 23... Qb7 {[%clk
0:01:33.2]} 24. Rg2 {[%clk 0:01:40.2]} 24... Qc7 {[%clk 0:01:27.6]} 25. h5
{[%clk 0:01:36.7]} 25... d5 {[%clk 0:01:22.2]} 26. hxg6 {[%clk 0:01:23.7]} 26...
hxg6 {[%clk 0:01:02.2]} 27. e5 {[%clk 0:01:19.9]} 27... c4 {[%clk 0:00:27.6]}
28. Ng4 {[%clk 0:01:12.7]} 28... Red8 {[%clk 0:00:07.4]} 29. Nf6+ {[%clk
0:01:03.6]} 29... Kf8 {[%clk 0:00:07.2]} 30. Rh1 {[%clk 0:00:52.1]} 30... Ke7
{[%clk 0:00:06.5]} 31. Rh7 {[%clk 0:00:40.1]} 31... Bf8 {[%clk 0:00:02.3]} 32.
Qf2 {[%clk 0:00:26]} 32... Qb6 {[%clk 0:00:01.5]} 33. Qxb6 {[%clk 0:00:20.1]}
33... Rxb6 {[%clk 0:00:02.4]} 34. Rgh2 {[%clk 0:00:17.5]} 34... d4 {[%clk
0:00:02.4]} 35. cxd4 {[%clk 0:00:15.6]} 35... Rxd4 {[%clk 0:00:02.3]} 36. Ne4
{[%clk 0:00:14.8]} 36... c5 {[%clk 0:00:01.4]} 37. Nxc5 {[%clk 0:00:14.1]} 37...
Bb5 {[%clk 0:00:01.4]} 38. Ne4 {[%clk 0:00:12.4]} 38... Rxe4 {[%clk 0:00:01.4]}
39. Bxe4 {[%clk 0:00:12.4]} 1-0

[Event "*** Titled Tuesday Blitz"]
[Site "Chess.com"]
[Date "2020.03.03"]
[Round "8"]
[White "Roman_Ovetchkin"]
[Black "IMDT02"]
[Result "1-0"]
[WhiteElo "2637"]
[BlackElo "2480"]
[TimeControl "180+1"]
[EndTime "10:29:28 PST"]
[Termination "Roman_Ovetchkin won by resignation"]

1. d4 {[%clk 0:03:00.9]} 1... Nf6 {[%clk 0:02:59.4]} 2. c4 {[%clk 0:03:00.3]}
2... e6 {[%clk 0:03:00]} 3. Nf3 {[%clk 0:02:59.2]} 3... d5 {[%clk 0:03:00.4]} 4.
g3 {[%clk 0:02:59.2]} 4... Be7 {[%clk 0:03:00.7]} 5. Bg2 {[%clk 0:02:59.4]} 5...
O-O {[%clk 0:03:01.4]} 6. O-O {[%clk 0:02:59.8]} 6... dxc4 {[%clk 0:03:02.1]} 7.
Qc2 {[%clk 0:02:59.7]} 7... a6 {[%clk 0:03:02.7]} 8. a4 {[%clk 0:02:57.2]} 8...
Bd7 {[%clk 0:03:02.7]} 9. Bg5 {[%clk 0:02:50.3]} 9... Nc6 {[%clk 0:02:55.8]} 10.
Qxc4 {[%clk 0:02:42.2]} 10... b5 {[%clk 0:02:37.6]} 11. Qc1 {[%clk 0:02:34.6]}
11... Rb8 {[%clk 0:02:31.5]} 12. axb5 {[%clk 0:02:31]} 12... axb5 {[%clk
0:02:32.4]} 13. Rd1 {[%clk 0:02:28.4]} 13... Nb4 {[%clk 0:02:26.9]} 14. Ne5
{[%clk 0:02:08.8]} 14... Be8 {[%clk 0:02:20.9]} 15. Ra7 {[%clk 0:01:54.1]} 15...
c6 {[%clk 0:02:03.9]} 16. Rxe7 {[%clk 0:00:53]} 16... Qxe7 {[%clk 0:01:58.5]}
17. Ng4 {[%clk 0:00:53]} 17... h5 {[%clk 0:01:12.3]} 18. Nxf6+ {[%clk
0:00:20.1]} 18... gxf6 {[%clk 0:01:12.2]} 19. Bh6 {[%clk 0:00:20.7]} 19... Kh7
{[%clk 0:01:06.8]} 20. Bxf8 {[%clk 0:00:20.5]} 20... Qxf8 {[%clk 0:01:07.7]} 21.
Qf4 {[%clk 0:00:20.1]} 21... Ra8 {[%clk 0:00:59.3]} 22. Qxf6 {[%clk 0:00:20]}
22... Qg7 {[%clk 0:00:55.4]} 23. Qe7 {[%clk 0:00:18.7]} 23... Nd5 {[%clk
0:00:51.7]} 24. Be4+ {[%clk 0:00:18.7]} 24... Kh8 {[%clk 0:00:51.3]} 25. Qh4
{[%clk 0:00:17.1]} 25... Nf6 {[%clk 0:00:45.1]} 26. Bf3 {[%clk 0:00:16.2]} 26...
Qg6 {[%clk 0:00:37.2]} 27. Nc3 {[%clk 0:00:14.5]} 27... b4 {[%clk 0:00:35.1]}
28. Ne4 {[%clk 0:00:10.5]} 28... Nxe4 {[%clk 0:00:31.4]} 29. Bxe4 {[%clk
0:00:11.4]} 29... f5 {[%clk 0:00:29]} 30. Bf3 {[%clk 0:00:10.9]} 30... Kg7
{[%clk 0:00:26.5]} 31. Qf4 {[%clk 0:00:09.9]} 31... Rd8 {[%clk 0:00:25.8]} 32.
Qc7+ {[%clk 0:00:09.6]} 32... Rd7 {[%clk 0:00:25.9]} 33. Qb6 {[%clk 0:00:09.9]}
33... h4 {[%clk 0:00:21]} 34. Bxc6 {[%clk 0:00:09.5]} 34... Re7 {[%clk
0:00:21.4]} 35. Qxb4 {[%clk 0:00:08]} 35... Qf7 {[%clk 0:00:15.2]} 36. Bxe8
{[%clk 0:00:07.8]} 36... Qxe8 {[%clk 0:00:16.1]} 37. d5 {[%clk 0:00:07.1]} 37...
hxg3 {[%clk 0:00:15.5]} 38. hxg3 {[%clk 0:00:05.7]} 38... Rd7 {[%clk 0:00:14.2]}
39. Qd4+ {[%clk 0:00:05.6]} 39... Kg6 {[%clk 0:00:13.4]} 40. d6 {[%clk
0:00:05.2]} 40... Qd8 {[%clk 0:00:12]} 41. e4 {[%clk 0:00:05.3]} 41... Qg5
{[%clk 0:00:08.8]} 42. exf5+ {[%clk 0:00:05.1]} 42... exf5 {[%clk 0:00:09.7]}
43. Qe5 {[%clk 0:00:04.9]} 43... Qf6 {[%clk 0:00:09.2]} 44. Qe8+ {[%clk
0:00:04.5]} 44... Rf7 {[%clk 0:00:08.7]} 45. d7 {[%clk 0:00:04.2]} 1-0

[Event "*** Titled Tuesday Blitz"]
[Site "Chess.com"]
[Date "2020.03.03"]
[Round "8"]
[White "AleksanderHnydiuk"]
[Black "Peroncio"]
[Result "1-0"]
[WhiteElo "2569"]
[BlackElo "2642"]
[TimeControl "180+1"]
[EndTime "10:29:29 PST"]
[Termination "AleksanderHnydiuk won by resignation"]

1. d4 {[%clk 0:03:00.9]} 1... Nf6 {[%clk 0:01:45.9]} 2. Nf3 {[%clk 0:02:59.8]}
2... e6 {[%clk 0:01:41.4]} 3. c4 {[%clk 0:02:58.5]} 3... Bb4+ {[%clk 0:01:40.5]}
4. Bd2 {[%clk 0:02:58]} 4... a5 {[%clk 0:01:40.8]} 5. g3 {[%clk 0:02:57.5]} 5...
b6 {[%clk 0:01:38.6]} 6. Bg2 {[%clk 0:02:57.7]} 6... Bb7 {[%clk 0:01:39.2]} 7.
O-O {[%clk 0:02:58.3]} 7... O-O {[%clk 0:01:39.7]} 8. Nc3 {[%clk 0:02:55.5]}
8... d6 {[%clk 0:01:32.2]} 9. Qc2 {[%clk 0:02:55.4]} 9... Nbd7 {[%clk
0:01:28.4]} 10. Rfe1 {[%clk 0:02:55.3]} 10... Bxc3 {[%clk 0:01:26.1]} 11. Bxc3
{[%clk 0:02:56.2]} 11... Be4 {[%clk 0:01:17.3]} 12. Qd1 {[%clk 0:02:56.1]} 12...
Qe7 {[%clk 0:01:14.6]} 13. Bh3 {[%clk 0:02:56.1]} 13... e5 {[%clk 0:01:07.8]}
14. Nd2 {[%clk 0:02:53.6]} 14... Bg6 {[%clk 0:01:01.6]} 15. e4 {[%clk 0:02:53]}
15... exd4 {[%clk 0:00:59.8]} 16. Bxd4 {[%clk 0:02:53.9]} 16... Ne5 {[%clk
0:00:50.8]} 17. Qc2 {[%clk 0:02:37.2]} 17... Nfd7 {[%clk 0:00:38.5]} 18. f4
{[%clk 0:02:33.5]} 18... Nc6 {[%clk 0:00:38.8]} 19. Bc3 {[%clk 0:02:30.5]} 19...
Bh5 {[%clk 0:00:27.4]} 20. Kg2 {[%clk 0:02:17.7]} 20... Nf6 {[%clk 0:00:17.6]}
21. Bxf6 {[%clk 0:02:05.6]} 21... Qxf6 {[%clk 0:00:18.5]} 22. g4 {[%clk
0:02:01]} 22... Qxf4 {[%clk 0:00:06.8]} 23. gxh5 {[%clk 0:01:59.8]} 23... Ne5
{[%clk 0:00:06.9]} 24. Rf1 {[%clk 0:01:55.3]} 24... Qg5+ {[%clk 0:00:07.1]} 25.
Kh1 {[%clk 0:01:55.4]} 25... Qxh5 {[%clk 0:00:07.6]} 26. Qc3 {[%clk 0:01:51.1]}
26... g6 {[%clk 0:00:06.2]} 27. Qg3 {[%clk 0:01:50.4]} 27... Rae8 {[%clk
0:00:04.8]} 28. Rae1 {[%clk 0:01:49.3]} 28... Qh6 {[%clk 0:00:04.7]} 29. Re2
{[%clk 0:01:44.9]} 29... Nc6 {[%clk 0:00:04.8]} 30. Nf3 {[%clk 0:01:42.3]} 30...
Re7 {[%clk 0:00:04.9]} 31. Bg2 {[%clk 0:01:35.2]} 31... Rfe8 {[%clk 0:00:05.2]}
32. Qg5 {[%clk 0:01:34.6]} 32... Qg7 {[%clk 0:00:05.1]} 33. Nh4 {[%clk
0:01:33.4]} 33... Re5 {[%clk 0:00:04.5]} 34. Qg3 {[%clk 0:01:33]} 34... Nd4
{[%clk 0:00:04.7]} 35. Ref2 {[%clk 0:01:31.8]} 35... Rh5 {[%clk 0:00:04.9]} 36.
Nf3 {[%clk 0:01:27.5]} 36... Nc6 {[%clk 0:00:04.9]} 37. Ng5 {[%clk 0:01:23.2]}
37... Ne5 {[%clk 0:00:05]} 38. Bf3 {[%clk 0:01:22.2]} 38... Rh6 {[%clk 0:00:04]}
39. Be2 {[%clk 0:01:20.2]} 39... Qf8 {[%clk 0:00:03.7]} 40. Qf4 {[%clk
0:01:15.6]} 40... Re7 {[%clk 0:00:04]} 41. Nf3 {[%clk 0:01:07.9]} 41... f6
{[%clk 0:00:03.1]} 42. Nxe5 {[%clk 0:01:07.2]} 42... dxe5 {[%clk 0:00:02.6]} 43.
Qxf6 {[%clk 0:01:05.8]} 43... Qxf6 {[%clk 0:00:02.5]} 44. Rxf6 {[%clk
0:01:06.7]} 44... Rh3 {[%clk 0:00:02.6]} 45. c5 {[%clk 0:01:04.5]} 45... Re3
{[%clk 0:00:02.3]} 46. Bc4+ {[%clk 0:01:04.1]} 46... Kg7 {[%clk 0:00:02.9]} 47.
Rf7+ {[%clk 0:01:03.3]} 47... Rxf7 {[%clk 0:00:03.5]} 48. Rxf7+ {[%clk
0:01:03.8]} 48... Kh6 {[%clk 0:00:04.4]} 49. c6 {[%clk 0:01:02.7]} 49... Rxe4
{[%clk 0:00:04.3]} 50. Bb5 {[%clk 0:00:59.7]} 50... Rb4 {[%clk 0:00:03.9]} 51.
a4 {[%clk 0:00:59.7]} 51... e4 {[%clk 0:00:04.4]} 52. Rxc7 {[%clk 0:00:59.6]}
52... Rxb2 {[%clk 0:00:05.3]} 53. Re7 {[%clk 0:00:58.5]} 53... Rc2 {[%clk
0:00:06.2]} 54. Rxe4 {[%clk 0:00:58]} 54... Kg5 {[%clk 0:00:06.2]} 55. Rc4
{[%clk 0:00:58]} 1-0